[Event "Czech Open Rapid G1 2024"]
[Site "Pardubice"]
[Date "2024.07.18"]
[Round "8.7"]
[White "Piesik, Piotr"]
[Black "Bouska, Jiri"]
[Result "1-0"]
[Annotator "TA"]
[ECO "A05"]
[WhiteElo "2415"]
[BlackElo "2222"]
[PlyCount "133"]
[EventDate "2024.07.16"]
[EventType "swiss"]
[EventCountry "CZE"]
[SourceTitle "playchess.com"]
[Source "ChessBase"]
[SourceQuality "1"]
[TimeControl "1200+10"]

{[%evp 13,133,11,25,-6,0,0,10,0,0,0,0,8,0,-54,-54,-54,-53,-70,0,0,0,0,0,0,75,18,24,0,-19,-87,14,0,0,0,0,-229,-230,-245,-239,-302,-312,-281,-296,-289,-67,-52,-45,-43,-47,-223,-211,-276,-270,-210,-78,-71,-39,-91,34,62,195,195,195,195,329,329,341,337,337,335,1658,1513,29973,29976,29974,1674,29981,29982,29982,29983,29984,29985,29984,29985,29985,29986,29986,29985,29987,29988,29988,29989,29990,29989,29989,29987,29987,29986,29988,29986,29986,29987,29987,29988,29988,29986,29986,29987,29987,29988,29988,29989,29990,29991,29991,29991,29992,29993,29994,29995,29995,29995]} 1. Nf3 {[%emt 0:00:01]} d5 {[%emt 0:00:01]} 2. g3 {[%emt 0:00:01]} Nf6 {[%emt 0:00:01]} 3. Bg2 {[%emt 0:00:01]} e6 {[%emt 0:00:01]} 4. O-O {[%emt 0:00:01]} Be7 {[%emt 0:00:02]} 5. d3 {[%emt 0:00:01]} c5 {[%emt 0:00:03]} 6. Nbd2 {[%emt 0:00:02]} b5 {[%emt 0:00:17]} 7. e4 {[%emt 0:00:01]} Bb7 {[%emt 0:00:04]} 8. Qe2 {[%emt 0:00:18]} Nc6 {[%emt 0:00:12]} 9. Re1 {[%emt 0:00:21]} a5 {[%emt 0:00:40]} 10. a4 {[%emt 0:00:12] The position is equal.} b4 {[%emt 0:00:21]} 11. b3 {[%emt 0:01:18]} Qc7 {[%emt 0:00:34]} 12. Bb2 {[%emt 0:00:25]} O-O {[%emt 0:02:13]} 13. e5 {[%emt 0:01:26]} (13. exd5 $11 Nxd5 14. Ne4) 13... Nd7 $15 {[%emt 0:00:04]} 14. h4 {[%emt 0:00:30][%cal Bh2h4,Bh4h5,Bh5h6][%mdl 32]} Rac8 {[%emt 0:00:56]} 15. h5 {[%emt 0:00:28][%cal Oh5h6]} Rfd8 {[%emt 0:00:52]} (15... h6 $15) 16. h6 $1 $11 {[%emt 0:00:44]} g6 {[%emt 0:00:03]} 17. Qe3 {[%emt 0:00:20]} Bf8 {[%emt 0:01:23]} 18. Qf4 {[%emt 0:00:14]} Ba6 {[%emt 0:01:51]} (18... Ne7 $11) 19. Nf1 {[%emt 0:01:07] White is more active.} (19. Ng5 $16 Nb6 20. Ndf3) 19... c4 {[%emt 0:00:23]} 20. dxc4 {[%emt 0:00:01]} dxc4 {[%emt 0:00:03]} 21. Ng5 {[%emt 0:00:11]} (21. bxc4 $11 Ne7 22. Ne3) 21... Ndb8 {[%emt 0:00:29]} (21... Nc5 $1 $17 22. Bxc6 (22. bxc4 Bxh6 23. Qh4 Bxg5 $15) 22... cxb3 23. cxb3 Nd3) 22. Nh2 {[%emt 0:01:30]} (22. bxc4 {simplifies} Bxh6 23. Qh4 Bxg5 24. Qxg5 Nd4 25. Ne3) 22... c3 $36 {[%emt 0:00:35][%mdl 2048] White is under pressure.} (22... Bxh6 23. Ng4 Bg7 24. bxc4 $14) 23. Bc1 {[%emt 0:00:01] And now Ng4 would win.} Nd4 {[%emt 0:01:55]} (23... Bxh6 24. Qh4 Bxg5 25. Bxg5 $16) 24. Qe4 {[%emt 0:00:16] [#] Prevents Ne2+.} (24. Ng4 $11 {and White stays safe.} Nxc2 25. Nf6+ Kh8 26. Nfxh7) 24... Bb7 $1 $19 {[%emt 0:06:11][%mdl 512]} 25. Qxb7 {[%emt 0:00:07] aiming for Ng4.} Nxc2 {[%emt 0:00:01]} 26. Bf4 {[%emt 0:02:26]} Nxa1 {[%emt 0:00:39]} 27. Rxa1 {[%emt 0:00:39]} Qxb7 {[%emt 0:01:43]} (27... Bxh6 28. Ng4 Bg7 29. Qxc7 Rxc7 30. Kf1 $17) (27... c2 28. Rf1 Qxb7 (28... Bxh6 $2 29. Ng4 $19) 29. Bxb7 $19) 28. Bxb7 {[%emt 0:00:01]} Rc7 {[%emt 0:00:03]} (28... c2 $1 $19 29. Rf1 (29. Bxc8 $2 Rd1+ 30. Kg2 Rxa1 $19) 29... Rc3 (29... Rc7 $2 30. Bf3 $19)) 29. Bf3 $15 {[%emt 0:00:12] Inhibits Rd1+.} Nc6 {[%emt 0:01:11]} 30. Bxc6 {[%emt 0:01:07]} (30. Ng4 $2 Nd4 31. Nf6+ Kh8 $19) 30... Rxc6 {[%emt 0:00:01]} 31. Ng4 $2 {[%emt 0:00:01]} ({Better is} 31. Kf1 $1 $15 c2 (31... Bxh6 32. Ng4 $11) 32. Ke2 Bxh6 33. Nxe6 Bxf4 (33... fxe6 34. Bxh6 Rc3 35. Rc1 $17) (33... c1=Q $2 34. Rxc1 Rxe6 35. Bxh6 $18) 34. Nxd8) 31... Be7 $19 {[%emt 0:00:25] White must now prevent ...c2.} 32. Ne3 {[%emt 0:00:54]} c2 {[%emt 0:01:33]} 33. Rc1 {[%emt 0:00:06] [#]} Bxg5 {[%emt 0:00:04]} (33... Rd3 $1 $19 {[%cal Rd3b3]} 34. Nxc2 (34. Rxc2 $2 Rxc2 35. Nxc2 Rxb3 $19) 34... Rxb3 (34... Rdc3 $2 35. Ne4 $19)) 34. Bxg5 $17 {[%emt 0:00:01]} Rd3 {[%emt 0:00:24][%cal Oc6c8]} 35. Kg2 {[%emt 0:01:41] [#]} (35. Rxc2 $2 Rxc2 36. Nxc2 Rxb3 $19) (35. Nxc2 Rc8 36. Be3 Rdc3) (35. Kf1 $15) 35... Rxb3 {[%emt 0:00:16]} (35... Rc8 $1 $17 36. Rxc2 (36. Nxc2 $2 Rdc3 $19) 36... Rxc2 37. Nxc2 Rxb3) 36. Nxc2 $14 {[%emt 0:00:01]} (36. Rxc2 $2 Rxc2 37. Nxc2 Rd3 $19) 36... Rd3 {[%emt 0:00:13] [#] Dodges Rd1. Black is now going downhill.} ({Black should try} 36... f6 $14 37. exf6 (37. Bxf6 g5 $17) 37... Rc5) 37. Nxb4 $1 $18 {[%emt 0:00:04][%mdl 512]} Rxc1 {[%emt 0:00:11]} 38. Nxd3 {[%emt 0:00:01]} Rc4 {[%emt 0:00:08]} (38... Rc3 $142 39. Nc1 Ra3) 39. Be7 {[%emt 0:01:33] Threatens to win with Nc5.} (39. Nb2 Re4 40. Kf3 Rxe5 $16) 39... Rxa4 {[%emt 0:00:13]} 40. Nc5 {[%emt 0:00:02]} Rd4 {[%emt 0:00:05]} 41. Kf3 {[%emt 0:00:07]} f5 {[%emt 0:00:22] Against Ne4} (41... Rc4 42. Ke3 a4) 42. exf6 {[%emt 0:00:10]} ({Weaker is} 42. Nxe6 Re4 $18) 42... a4 {[%emt 0:00:04]} 43. Nxe6 {[%emt 0:00:13]} Rd5 {[%emt 0:00:17]} 44. Kg4 {[%emt 0:00:15]} (44. Nd8 $142 Rf5+ 45. Ke3 (45. Kg2 g5 $18) 45... Re5+ 46. Kd4 Rf5 47. f7+ Rxf7 48. Nxf7 Kxf7 49. Ba3) 44... Kf7 {[%emt 0:00:10]} 45. Ng5+ {[%emt 0:00:04] White mates.} Ke8 {[%emt 0:00:02]} 46. Ba3 {[%emt 0:00:10]} Rd4+ {[%emt 0:00:06]} 47. f4 {[%emt 0:00:02]} Rd7 {[%emt 0:00:06]} 48. f7+ {[%emt 0:00:06]} Rxf7 {[%emt 0:00:01]} 49. Nxf7 {[%emt 0:00:01]} Kxf7 {[%emt 0:00:01] KB-K3P} 50. Kf3 {[%emt 0:00:05]} Ke6 {[%emt 0:00:02]} 51. Ke4 {[%emt 0:00:02]} Kf6 {[%emt 0:00:03]} 52. g4 {[%emt 0:00:07]} Ke6 {[%emt 0:00:01]} 53. Kd4 {[%emt 0:00:03]} Kf6 {[%emt 0:00:08]} 54. Bb2 {[%emt 0:00:04]} Ke6 {[%emt 0:00:04]} 55. Kc4 {[%emt 0:00:03]} Kf7 {[%emt 0:00:10]} 56. f5 {[%emt 0:00:07]} a3 {[%emt 0:00:17]} 57. Ba1 {[%emt 0:00:05]} gxf5 {[%emt 0:00:05]} 58. gxf5 {[%emt 0:00:01] KB-KPP} Ke7 {[%emt 0:00:17]} 59. Kb3 {[%emt 0:00:01]} Kd6 {[%emt 0:00:04]} 60. Kxa3 {[%emt 0:00:02] KB-KP} Kd5 {[%emt 0:00:00]} 61. Kb4 {[%emt 0:00:02]} Kd6 {[%emt 0:00:02]} 62. Kc4 {[%emt 0:00:02]} Kd7 {[%emt 0:00:01]} 63. Kd5 {[%emt 0:00:01]} Ke7 {[%emt 0:00:01]} 64. Ke5 {[%emt 0:00:06]} Kf7 {[%emt 0:00:01]} 65. Kd6 {[%emt 0:00:04]} Kg8 {[%emt 0:00:15]} 66. Ke6 {[%emt 0:00:04]} Kf8 {[%emt 0:00:01]} 67. f6 {[%emt 0:00:02] Weighted Error Value: White=0.28 (precise) /Black=0.59.  Loses game:     	White=2     	---        Missed win:     	---       	Black=1      Mistake:       	White=4     	Black=8      Inaccurate:     	White=2     	Black=2      OK:         	White=10    	Black=9      Best:        	White=4     	Black=5      Strong:       	White=1     	---        Brilliant:      	White=1     	Black=1} 1-0

[Event "Czech Open Rapid G1 2024"]
[Site "Pardubice"]
[Date "2024.07.18"]
[Round "8.8"]
[White "Abdulov, Orkhan"]
[Black "Prokofiev, Valentyn"]
[Result "1/2-1/2"]
[Annotator "RC"]
[ECO "B41"]
[WhiteElo "2382"]
[BlackElo "2337"]
[PlyCount "160"]
[EventDate "2024.07.16"]
[EventType "swiss"]
[EventCountry "CZE"]
[SourceTitle "playchess.com"]
[Source "ChessBase"]
[SourceQuality "1"]
[TimeControl "1200+10"]

1. e4 {[%emt 0:00:01]} c5 {[%emt 0:00:01]} 2. Nf3 {[%emt 0:00:03]} e6 {[%emt 0:00:01]} 3. d4 {[%emt 0:00:02]} cxd4 {[%emt 0:00:01]} 4. Nxd4 {[%emt 0:00:01]} a6 {[%emt 0:00:00]} 5. c4 {[%emt 0:00:19]} Qc7 {[%emt 0:00:02]} 6. a3 {[%emt 0:00:39]} b6 {[%emt 0:00:02]} 7. Be3 {[%emt 0:00:06]} Bb7 {[%emt 0:00:07]} 8. Nc3 {[%emt 0:00:07]} Nf6 {[%emt 0:00:16]} 9. f3 {[%emt 0:00:13]} Nc6 {[%emt 0:00:06]} 10. Rc1 {[%emt 0:00:10]} Nxd4 {[%emt 0:00:50]} 11. Bxd4 {[%emt 0:00:12]} Bc5 {[%emt 0:00:03]} 12. b4 {[%emt 0:00:14]} Bxd4 {[%emt 0:00:40]} 13. Qxd4 {[%emt 0:00:03]} d6 {[%emt 0:00:11]} 14. Be2 {[%emt 0:00:42]} O-O {[%emt 0:00:07]} 15. O-O {[%emt 0:00:06]} Rab8 {[%emt 0:00:11]} 16. Rfd1 {[%emt 0:01:10]} Rfd8 {[%emt 0:00:03]} 17. Rd2 {[%emt 0:00:51]} Ne8 {[%emt 0:04:37]} 18. Rcd1 {[%emt 0:01:26]} Rdc8 {[%emt 0:00:02]} 19. Rc1 {[%emt 0:00:51]} Rd8 {[%emt 0:00:12]} 20. f4 {[%emt 0:00:13]} Ba8 {[%emt 0:00:58]} 21. Rd3 {[%emt 0:00:39]} Qe7 {[%emt 0:02:08]} 22. Rg3 {[%emt 0:00:14]} Rdc8 {[%emt 0:01:32]} 23. Rd1 {[%emt 0:01:06]} Rd8 {[%emt 0:05:55]} 24. Qe3 {[%emt 0:00:23]} Bc6 {[%emt 0:00:21]} 25. Rf1 {[%emt 0:00:56]} Kh8 {[%emt 0:01:21]} 26. Bd3 {[%emt 0:00:07]} b5 {[%emt 0:00:50]} 27. cxb5 {[%emt 0:00:07]} Bxb5 {[%emt 0:00:11]} 28. Nxb5 axb5 {[%emt 0:00:01]} 29. e5 {[%emt 0:00:26]} g6 {[%emt 0:00:26]} 30. Rh3 {[%emt 0:00:48]} f5 {[%emt 0:00:45]} 31. exf6 {[%emt 0:00:32]} Qxf6 {[%emt 0:00:01]} 32. Rh6 {[%emt 0:00:45]} Kg8 {[%emt 0:00:30]} 33. Qg3 {[%emt 0:00:17]} Rd7 {[%emt 0:00:45]} 34. f5 {[%emt 0:01:03]} exf5 {[%emt 0:00:21]} 35. Bxf5 {[%emt 0:00:16]} Rf7 {[%emt 0:00:20]} 36. Qe3 {[%emt 0:01:36]} Ng7 {[%emt 0:00:58]} 37. Bd3 {[%emt 0:00:21]} Qe7 {[%emt 0:00:31]} 38. Qxe7 {[%emt 0:00:15]} Rxe7 {[%emt 0:00:00]} 39. Rh4 {[%emt 0:00:14]} Re5 {[%emt 0:00:47]} 40. Re4 {[%emt 0:01:08]} Ra8 {[%emt 0:00:26]} 41. Rxe5 {[%emt 0:00:07]} dxe5 {[%emt 0:00:00]} 42. Bxb5 {[%emt 0:00:01]} Nf5 {[%emt 0:00:01]} 43. a4 {[%emt 0:00:14]} Nd4 {[%emt 0:00:02]} 44. Bc4+ {[%emt 0:00:06]} Kh8 {[%emt 0:00:07]} 45. a5 {[%emt 0:00:04]} Nc2 {[%emt 0:00:04]} 46. Rb1 {[%emt 0:01:02]} Rb8 {[%emt 0:00:03]} 47. a6 {[%emt 0:00:34]} Na3 {[%emt 0:00:01]} 48. Bd5 {[%emt 0:01:15]} Nxb1 {[%emt 0:00:32]} 49. a7 {[%emt 0:00:04]} Rf8 {[%emt 0:00:01]} 50. a8=Q {[%emt 0:00:47]} Rxa8 {[%emt 0:00:00]} 51. Bxa8 {[%emt 0:00:01]} Na3 {[%emt 0:00:23]} 52. Bc6 {[%emt 0:01:20]} Kg7 {[%emt 0:00:37]} 53. Kf2 {[%emt 0:00:10]} Kf6 {[%emt 0:00:05]} 54. b5 {[%emt 0:00:08]} Nc4 {[%emt 0:00:04]} 55. Bd5 {[%emt 0:00:04]} Nb6 {[%emt 0:00:19]} 56. Bg8 {[%emt 0:00:04]} h6 {[%emt 0:00:19]} 57. Ke3 {[%emt 0:00:02]} Ke7 {[%emt 0:00:12]} 58. Ba2 {[%emt 0:00:48]} Kd6 {[%emt 0:00:08]} 59. Bf7 {[%emt 0:00:07]} g5 {[%emt 0:00:09]} 60. Ke4 {[%emt 0:00:03]} Na4 {[%emt 0:00:09]} 61. Kf5 {[%emt 0:00:16]} Nc3 {[%emt 0:00:01]} 62. Kg6 {[%emt 0:01:03]} e4 {[%emt 0:00:02]} 63. Kxh6 {[%emt 0:00:05]} g4 {[%emt 0:00:29]} 64. Kg5 {[%emt 0:01:05]} e3 {[%emt 0:00:12]} 65. Bc4 {[%emt 0:00:03]} Kc5 {[%emt 0:00:03]} 66. Bf1 {[%emt 0:00:28]} Nxb5 {[%emt 0:00:17]} 67. Kxg4 {[%emt 0:00:38]} Nd4 {[%emt 0:00:03]} 68. Kg5 {[%emt 0:00:26]} Kd6 {[%emt 0:00:15]} 69. Kf6 {[%emt 0:00:03]} e2 {[%emt 0:00:01]} 70. Bxe2 {[%emt 0:00:01]} Nxe2 {[%emt 0:00:00]} 71. g4 {[%emt 0:00:01]} Nf4 {[%emt 0:00:18]} 72. h4 {[%emt 0:00:05]} Nd5+ {[%emt 0:00:00]} 73. Kf7 {[%emt 0:00:20]} Ke5 {[%emt 0:00:01]} 74. h5 {[%emt 0:00:17]} Nf6 {[%emt 0:00:04]} 75. h6 {[%emt 0:00:04]} Nh7 {[%emt 0:00:01]} 76. Kg6 {[%emt 0:00:50]} Nf8+ {[%emt 0:00:01]} 77. Kg7 {[%emt 0:00:26]} Ne6+ {[%emt 0:00:01]} 78. Kf7 {[%emt 0:00:01]} Ng5+ {[%emt 0:00:01]} 79. Kg6 {[%emt 0:00:08]} Kf4 {[%emt 0:00:03]} 80. Kh5 {[%emt 0:00:08]} Nh7 {[%emt 0:00:01]} 1/2-1/2

[Event "Czech Open Rapid G1 2024"]
[Site "Pardubice"]
[Date "2024.07.18"]
[Round "8.9"]
[White "Lalic, Bogdan"]
[Black "Movsesian, Julia"]
[Result "1/2-1/2"]
[Annotator "RC"]
[ECO "A39"]
[WhiteElo "2348"]
[BlackElo "2202"]
[PlyCount "61"]
[EventDate "2024.07.16"]
[EventType "swiss"]
[EventCountry "CZE"]
[SourceTitle "playchess.com"]
[Source "ChessBase"]
[SourceQuality "1"]
[TimeControl "1200+10"]

1. c4 {[%emt 0:00:05]} c5 {[%emt 0:00:03]} 2. Nf3 {[%emt 0:00:54]} Nc6 {[%emt 0:00:14]} 3. Nc3 {[%emt 0:00:06]} Nf6 {[%emt 0:00:14]} 4. g3 {[%emt 0:00:07]} g6 {[%emt 0:00:09]} 5. d4 {[%emt 0:00:06]} cxd4 {[%emt 0:00:12]} 6. Nxd4 {[%emt 0:00:06]} Bg7 {[%emt 0:00:05]} 7. Bg2 {[%emt 0:00:06]} O-O {[%emt 0:00:14]} 8. O-O {[%emt 0:00:05]} Nxd4 {[%emt 0:00:03]} 9. Qxd4 {[%emt 0:00:06]} d6 {[%emt 0:00:01]} 10. Qd3 {[%emt 0:00:16]} Qa5 {[%emt 0:00:28]} 11. h3 {[%emt 0:00:58]} Rb8 {[%emt 0:01:48]} 12. Bd2 {[%emt 0:00:16]} Bf5 {[%emt 0:04:00]} 13. e4 {[%emt 0:00:11]} Bd7 {[%emt 0:00:25]} 14. Nb5 {[%emt 0:01:27]} Qa6 {[%emt 0:00:19]} 15. a4 {[%emt 0:00:24]} Rfc8 {[%emt 0:01:13]} 16. Rfc1 {[%emt 0:04:14]} Be6 {[%emt 0:00:34]} 17. b3 {[%emt 0:01:55]} Nd7 {[%emt 0:00:38]} 18. Ra2 {[%emt 0:01:15]} Ra8 {[%emt 0:02:02]} 19. Qb1 {[%emt 0:01:26]} Qb6 {[%emt 0:02:01]} 20. a5 {[%emt 0:00:16]} Qd8 {[%emt 0:01:38]} 21. a6 {[%emt 0:00:57]} bxa6 {[%emt 0:00:47]} 22. Rxa6 {[%emt 0:00:02]} Nc5 {[%emt 0:01:36]} 23. Rxa7 {[%emt 0:00:03]} Rxa7 24. Nxa7 {[%emt 0:00:02]} Ra8 {[%emt 0:01:07]} 25. Nb5 {[%emt 0:00:03]} f5 {[%emt 0:00:29]} 26. e5 {[%emt 0:01:17]} Bxe5 {[%emt 0:01:44]} 27. Bxa8 {[%emt 0:00:09]} Qxa8 {[%emt 0:00:00]} 28. Nc7 {[%emt 0:00:24]} Qf3 {[%emt 0:00:23]} 29. Qa2 {[%emt 0:01:42]} Bd4 {[%emt 0:01:24]} 30. Qa8+ {[%emt 0:00:19]} Qxa8 {[%emt 0:00:02]} 31. Nxa8 {[%emt 0:00:01]} 1/2-1/2

[Event "Czech Open Rapid G1 2024"]
[Site "Pardubice"]
[Date "2024.07.18"]
[Round "8.10"]
[White "Jirka, Jiri"]
[Black "Jurek, Josef"]
[Result "1/2-1/2"]
[Annotator "TA"]
[ECO "E08"]
[WhiteElo "2387"]
[BlackElo "2200"]
[PlyCount "53"]
[EventDate "2024.07.16"]
[EventType "swiss"]
[EventCountry "CZE"]
[SourceTitle "playchess.com"]
[Source "ChessBase"]
[SourceQuality "1"]
[TimeControl "1200+10"]

{[%evp 12,53,22,26,28,24,43,42,64,66,77,59,70,0,0,0,0,0,0,0,0,0,0,0,0,0,0,-80,-32,-33,-27,-22,-26,-63,24,-88,-89,-83,0,0,0,-90,0,0]} 1. d4 {[%emt 0:00:05]} Nf6 {[%emt 0:00:06]} 2. c4 {[%emt 0:00:01]} e6 {[%emt 0:00:06]} 3. g3 {[%emt 0:00:05]} d5 {[%emt 0:00:15]} 4. Bg2 {[%emt 0:00:02]} Be7 {[%emt 0:00:14]} 5. Nf3 {[%emt 0:00:02]} O-O {[%emt 0:00:18]} 6. O-O {[%emt 0:00:01]} Nbd7 {[%emt 0:00:58]} 7. Qc2 {[%emt 0:00:38]} a5 {[%emt 0:00:17]} 8. Bf4 {[%emt 0:03:41]} c5 {[%emt 0:00:55]} 9. Nc3 {[%emt 0:11:54]} b6 {[%emt 0:02:33] White is slightly better.} 10. cxd5 {[%emt 0:00:57]} exd5 {[%emt 0:00:43]} 11. Rfd1 {[%emt 0:01:29] Ng5 is the strong threat. White is much more active.} (11. Ng5 $5 h6 12. Nxd5 $16) 11... Bb7 {[%emt 0:00:39]} 12. Ne5 {[%emt 0:01:04]} ({Better is} 12. e3 $14) 12... cxd4 $1 $11 {[%emt 0:01:44]} 13. Rxd4 {[%emt 0:00:08][%cal Rc3d5]} Bc5 {[%emt 0:00:23]} 14. Rd2 {[%emt 0:00:25]} Nxe5 {[%emt 0:00:38]} 15. Bxe5 {[%emt 0:00:09]} Bxf2+ $1 {[%emt 0:00:09]} 16. Kxf2 {[%emt 0:00:25]} Ng4+ {[%emt 0:00:02]} 17. Kg1 {[%emt 0:00:02]} Nxe5 {[%emt 0:00:13]} 18. Nxd5 {[%emt 0:00:12] aiming for Nc7.} Qg5 {[%emt 0:02:52]} 19. Rf1 {[%emt 0:01:04]} (19. Qc3 $11 Rac8 20. Qe3 Qxe3+ 21. Nxe3 Bxg2 22. Kxg2) 19... Bxd5 {[%emt 0:01:14]} (19... Rac8 $17 20. Qd1 Nc4) 20. Rxd5 $15 {[%emt 0:00:06]} Qe3+ {[%emt 0:01:02]} 21. Kh1 {[%emt 0:00:00]} Rac8 {[%emt 0:01:03]} 22. Qf5 {[%emt 0:00:26]} Rc5 {[%emt 0:00:13]} ({Black should try} 22... Rfe8 $15 23. Qe4 Qxe4 24. Bxe4 Nc4) 23. Qf4 {[%emt 0:00:15]} (23. Be4 $11 Ng6 24. Rxc5 bxc5 25. h4) 23... Qxe2 $17 {[%emt 0:02:16]} 24. Rf2 {[%emt 0:00:12]} Qe1+ {[%emt 0:01:13]} 25. Rf1 {[%emt 0:00:02]} Qe2 {[%emt 0:00:01]} 26. Rf2 $1 {[%emt 0:00:11] [#]} Qe1+ {[%emt 0:00:01]} (26... Qb5 $1 $17 27. a4 Qe8) 27. Rf1 {[%emt 0:00:07] Weighted Error Value: White=0.23 (precise) /Black=0.27 (precise) .  Mistake:       	White=3     	Black=3      Inaccurate:     	White=1     	---        OK:         	White=4     	Black=5      Best:        	White=4     	Black=5      Strong:       	White=1     	Black=2} 1/2-1/2

[Event "Czech Open Rapid G1 2024"]
[Site "Pardubice"]
[Date "2024.07.18"]
[Round "8.11"]
[White "Vrana, Frantisek"]
[Black "Rasik, Vitezslav"]
[Result "1/2-1/2"]
[Annotator "TA"]
[ECO "A41"]
[WhiteElo "2147"]
[BlackElo "2415"]
[PlyCount "66"]
[EventDate "2024.07.16"]
[EventType "swiss"]
[EventCountry "CZE"]
[SourceTitle "playchess.com"]
[Source "ChessBase"]
[SourceQuality "1"]
[TimeControl "1200+10"]

{[%evp 11,66,0,36,-9,0,-6,-7,8,24,0,18,8,27,-14,-12,-16,0,0,0,-18,-13,-14,-23,-19,-5,-21,0,0,-14,-28,-3,0,27,50,73,29,15,-29,-34,-39,-39,-46,-57,-80,-130,-229,-112,-497,-477,-501,-501,-527,-250,-872,-101,-681,-658]} 1. d4 {[%emt 0:00:03]} d6 {[%emt 0:00:03]} 2. Nf3 {[%emt 0:00:05]} g6 {[%emt 0:00:06]} 3. Bf4 {[%emt 0:00:03]} Bg7 {[%emt 0:00:04]} 4. e3 {[%emt 0:00:05]} Nd7 {[%emt 0:00:16]} 5. h3 {[%emt 0:00:19]} e5 {[%emt 0:00:12]} 6. Bh2 {[%emt 0:00:10]} Ne7 {[%emt 0:00:07]} 7. Nbd2 {[%emt 0:00:13]} O-O {[%emt 0:00:16]} 8. Be2 {[%emt 0:00:24]} Nf5 {[%emt 0:02:00]} 9. c3 {[%emt 0:01:05] The position is equal.} b6 {[%emt 0:02:50]} 10. Qa4 {[%emt 0:04:07]} a6 {[%emt 0:01:41]} 11. O-O {[%emt 0:00:00]} Bb7 {[%emt 0:02:29]} 12. Rfd1 {[%emt 0:03:36]} e4 {[%emt 0:01:47]} 13. Ne1 {[%emt 0:00:39]} Ne7 {[%emt 0:00:38]} 14. Qb3 {[%emt 0:00:00]} Kh8 {[%emt 0:00:21]} 15. a4 {[%emt 0:00:00]} a5 {[%emt 0:00:25]} 16. Qc2 {[%emt 0:00:21]} f5 {[%emt 0:00:03]} 17. b4 {[%emt 0:00:09]} g5 {[%emt 0:01:52]} 18. bxa5 {[%emt 0:00:55]} bxa5 {[%emt 0:00:52]} 19. Rdb1 {[%emt 0:00:28]} Bc8 {[%emt 0:00:25]} 20. Ra3 {[%emt 0:01:21]} d5 {[%emt 0:02:42]} 21. c4 {[%emt 0:00:20]} c6 {[%emt 0:00:10]} 22. cxd5 {[%emt 0:00:43]} cxd5 {[%emt 0:00:01]} 23. Bc7 {[%emt 0:01:43] White has more active pieces.} Qe8 {[%emt 0:00:01]} 24. f4 {[%emt 0:00:09]} exf3 {[%emt 0:00:54]} 25. Ndxf3 {[%emt 0:00:54]} g4 {[%emt 0:00:17]} 26. hxg4 {[%emt 0:00:41]} fxg4 {[%emt 0:00:01]} 27. Ng5 {[%emt 0:00:02][%csl Gg5,LRg4,LRh7][%cal Rc2h7] [#]} Nf6 {[%emt 0:00:12] Strongly threatening ...h6.} 28. Rb6 {[%emt 0:00:41]} (28. Bd6 $17) 28... Qh5 {[%emt 0:01:12]} (28... Nf5 $19 {[%cal Oe8h5] ...Qh5! would now be deadly.} 29. Rc3 h6 (29... Nxe3 30. Qd2 $15)) 29. Ne6 $2 {[%emt 0:00:42][%mdl 8192]} (29. Bf4 $17 {is a better chance.}) 29... Bxe6 $19 {[%emt 0:00:04]} 30. Rxe6 {[%emt 0:00:02]} Nf5 {[%emt 0:00:25] aiming for ...Rac8.} 31. Qd1 {[%emt 0:01:24]} Rae8 {[%emt 0:00:43]} (31... Qh4 $142 32. Bd3 Nh5 33. Bxf5 Rxf5) 32. Re5 $2 {[%emt 0:00:37] [#]} (32. Rxe8 Rxe8 33. Bf4) 32... Qg6 $2 {[%emt 0:00:26]} (32... Rxe5 $19 {is more deadly.} 33. Bxe5 Qh4) 33. Bb5 $2 {[%emt 0:00:39][%mdl 8192]} (33. Rxe8 $17 Qxe8 (33... Rxe8 $2 34. Bd3 $17) 34. Bf4) 33... Rxe5 {[%emt 0:00:23][%mdl 32768] Weighted Error Value: White=0.79/Black=0.54.  Loses game:     	White=2     	---        Missed win:     	---       	Black=1      Mistake:       	White=2     	Black=2      Inaccurate:     	White=3     	Black=1      OK:         	White=8     	Black=9      Best:        	---       	Black=2     . An unexpected result.} 1/2-1/2